[Event "Swedish Chess Championship 2019: Kadett-SM"]
[Site "Stiga Sports Arena, Arenatorget 1, Eskilstuna, Sweden, Sweden"]
[Date "2019.07.09"]
[Round "3.4"]
[White "Bensryd, Hampus"]
[Black "Zarytovskaya, Margo"]
[Result "0-1"]
[TimeControl "90 minutes for 40 moves + 30 minutes for the rest of the game + 30 seconds per move from move one"]
[WhiteFideId "1738330"]
[BlackFideId "14149249"]
[WhiteElo "1938"]
[BlackElo "1895"]

1. e4 {[%clk 01:30:48]} {[%emt 00:00:05]} c5 {[%clk 01:30:56]} {[%emt
00:00:10]} 2. Be2 {[%clk 01:30:21]} {[%emt 00:00:57]} Nc6 {[%clk 01:30:38]}
{[%emt 00:00:48]} 3. f4 {[%clk 01:30:38]} {[%emt 00:00:12]} g6 {[%clk
01:30:39]} {[%emt 00:00:31]} 4. Nf3 {[%clk 01:30:37]} {[%emt 00:00:30]} Bg7
{[%clk 01:30:50]} {[%emt 00:00:19]} 5. d3 {[%clk 01:30:36]} {[%emt 00:00:30]}
d6 {[%clk 01:30:49]} {[%emt 00:00:32]} 6. O-O {[%clk 01:30:06]} {[%emt
00:01:00]} e6 {[%clk 01:30:30]} {[%emt 00:00:50]} 7. c3 {[%clk 01:28:56]}
{[%emt 00:01:38]} Nge7 {[%clk 01:29:36]} {[%emt 00:01:24]} 8. Na3 {[%clk
01:26:15]} {[%emt 00:03:11]} O-O {[%clk 01:28:32]} {[%emt 00:01:34]} 9. Nc2
{[%clk 01:24:30]} {[%emt 00:02:15]} a6 {[%clk 01:22:33]} {[%emt 00:06:30]} 10.
d4 {[%clk 01:22:42]} {[%emt 00:02:17]} b6 {[%clk 01:18:29]} {[%emt 00:04:35]}
11. Be3 {[%clk 01:19:44]} {[%emt 00:03:27]} f5 {[%clk 01:13:43]} {[%emt
00:05:16]} 12. e5 {[%clk 01:15:24]} {[%emt 00:04:49]} cxd4 {[%clk 01:05:09]}
{[%emt 00:09:05]} 13. cxd4 {[%clk 01:13:43]} {[%emt 00:02:11]} Nd5 {[%clk
01:02:54]} {[%emt 00:02:45]} 14. Qd2 {[%clk 01:10:10]} {[%emt 00:04:03]} Bb7
{[%clk 00:59:13]} {[%emt 00:04:11]} 15. Bc4 {[%clk 01:03:56]} {[%emt 00:06:43]}
Na5 {[%clk 00:54:55]} {[%emt 00:04:48]} 16. b3 {[%clk 01:00:50]} {[%emt
00:03:35]} Rc8 {[%clk 00:52:23]} {[%emt 00:03:03]} 17. Bxd5 {[%clk 01:00:48]}
{[%emt 00:00:32]} Bxd5 {[%clk 00:51:48]} {[%emt 00:01:05]} 18. Nb4 {[%clk
01:00:16]} {[%emt 00:01:01]} Bb7 {[%clk 00:48:28]} {[%emt 00:03:50]} 19. Qe2
{[%clk 00:57:16]} {[%emt 00:03:30]} Nc6 {[%clk 00:44:57]} {[%emt 00:04:01]} 20.
Nd3 {[%clk 00:55:16]} {[%emt 00:02:30]} Ne7 {[%clk 00:41:24]} {[%emt 00:04:03]}
21. Rac1 {[%clk 00:33:03]} {[%emt 00:22:42]} Qd7 {[%clk 00:40:29]} {[%emt
00:01:26]} 22. exd6 {[%clk 00:30:38]} {[%emt 00:02:56]} Qxd6 {[%clk 00:38:20]}
{[%emt 00:02:39]} 23. Nfe5 {[%clk 00:30:27]} {[%emt 00:00:40]} Nd5 {[%clk
00:35:35]} {[%emt 00:03:15]} 24. Nc4 {[%clk 00:23:50]} {[%emt 00:07:07]} Qd8
{[%clk 00:28:42]} {[%emt 00:07:23]} 25. Nce5 {[%clk 00:19:40]} {[%emt
00:04:40]} Nc3 {[%clk 00:26:19]} {[%emt 00:02:53]} 26. Qb2 {[%clk 00:19:42]}
{[%emt 00:00:27]} Qd5 {[%clk 00:25:19]} {[%emt 00:01:31]} 27. Rf2 {[%clk
00:17:22]} {[%emt 00:02:50]} Qe4 {[%clk 00:22:48]} {[%emt 00:03:00]} 28. Rxc3
{[%clk 00:16:11]} {[%emt 00:01:41]} Qxe3 {[%clk 00:22:16]} {[%emt 00:01:04]} 29.
Rc1 {[%clk 00:02:48]} {[%emt 00:13:53]} Bxe5 {[%clk 00:21:35]} {[%emt
00:01:11]} 30. Re1 {[%clk 00:01:13]} {[%emt 00:02:05]} Qxd3 {[%clk 00:20:00]}
{[%emt 00:02:05]} 31. Rxe5 {[%clk 00:01:37]} {[%emt 00:00:06]} Be4 {[%clk
00:19:23]} {[%emt 00:01:07]} 32. Rxe6 {[%clk 00:01:09]} {[%emt 00:00:59]} Qe3
{[%clk 00:19:09]} {[%emt 00:00:42]} 33. h3 {[%clk 00:01:14]} {[%emt 00:00:25]}
Rc1+ {[%clk 00:15:55]} {[%emt 00:03:44]} 34. Kh2 {[%clk 00:01:22]} {[%emt
00:00:22]} Rfc8 {[%clk 00:14:15]} {[%emt 00:02:10]} 35. d5 {[%clk 00:00:32]}
{[%emt 00:01:20]} R8c3 {[%clk 00:13:33]} {[%emt 00:01:12]} 0-1

[Event "Swedish Chess Championship 2019: Kadett-SM"]
[Site "Stiga Sports Arena, Arenatorget 1, Eskilstuna, Sweden, Sweden"]
[Date "2019.07.09"]
[Round "3.5"]
[White "Muntean, Victor"]
[Black "Hall, Alexander"]
[Result "1-0"]
[TimeControl "90 minutes for 40 moves + 30 minutes for the rest of the game + 30 seconds per move from move one"]
[WhiteFideId "1054414"]
[BlackFideId "1738933"]
[WhiteElo "1971"]
[BlackElo "1805"]

1. e4 {[%clk 01:30:53]} c5 {[%clk 01:30:39]} 2. c3 {[%clk 01:30:53]} g6 {[%clk
01:30:39]} 3. Nf3 {[%clk 01:30:53]} Bg7 {[%clk 01:30:39]} 4. d4 {[%clk
01:30:53]} cxd4 {[%clk 01:30:39]} 5. cxd4 {[%clk 01:30:53]} d5 {[%clk
01:30:39]} 6. e5 {[%clk 01:30:53]} Bg4 {[%clk 01:30:39]} 7. Be2 {[%clk
01:30:53]} e6 {[%clk 01:30:39]} 8. Nc3 {[%clk 01:30:53]} Nc6 {[%clk 01:30:39]}
9. O-O {[%clk 01:30:53]} Nge7 {[%clk 01:30:39]} 10. a3 {[%clk 01:30:53]} Bxf3
{[%clk 01:08:14]} {[%emt 29:22:35]} 11. Bxf3 {[%clk 01:07:30]} Qb6 {[%clk
01:07:19]} {[%emt 00:02:29]} 12. Be3 {[%clk 01:07:49]} Na5 {[%clk 00:31:46]}
{[%emt 00:36:15]} 13. b4 {[%clk 01:03:25]} Nc4 {[%clk 00:31:35]} {[%emt
00:05:35]} 14. Qb3 {[%clk 01:00:50]} O-O {[%clk 00:24:47]} {[%emt 00:10:22]} 15.
Na4 {[%clk 00:57:36]} Qc7 {[%clk 00:20:42]} {[%emt 00:08:19]} 16. Rfc1 {[%clk
00:56:16]} b5 {[%clk 00:15:14]} {[%emt 00:07:49]} 17. Nc5 {[%clk 00:56:01]}
Rfd8 {[%clk 00:15:06]} {[%emt 00:01:23]} 18. a4 {[%clk 00:53:20]} a6 {[%clk
00:15:01]} {[%emt 00:03:47]} 19. Bg5 {[%clk 00:47:44]} Re8 {[%clk 00:13:25]}
{[%emt 00:08:12]} 20. a5 {[%clk 00:46:21]} Nf5 {[%clk 00:12:24]} {[%emt
00:03:23]} 21. Qc3 {[%clk 00:45:07]} h6 {[%clk 00:08:34]} {[%emt 00:06:03]} 22.
Bf4 {[%clk 00:41:27]} Kh7 {[%clk 00:03:41]} {[%emt 00:09:34]} 23. g4 {[%clk
00:38:18]} Nh4 {[%clk 00:04:00]} {[%emt 00:03:49]} 24. Bg3 {[%clk 00:37:37]}
Nxf3+ {[%clk 00:04:21]} {[%emt 00:01:20]} 25. Qxf3 {[%clk 00:38:00]} Qe7 {[%clk
00:04:00]} {[%emt 00:00:58]} 26. Qe2 {[%clk 00:36:19]} Rh8 {[%clk 00:02:46]}
{[%emt 00:03:54]} 27. f4 {[%clk 00:35:01]} Kg8 {[%clk 00:01:35]} {[%emt
00:03:30]} 28. Rf1 {[%clk 00:34:39]} h5 {[%clk 00:00:38]} {[%emt 00:02:19]} 29.
f5 {[%clk 00:34:12]} gxf5 {[%clk 00:00:56]} {[%emt 00:01:09]} 30. gxf5 {[%clk
00:34:33]} exf5 {[%clk 00:00:41]} {[%emt 00:00:55]} 31. Rxf5 {[%clk 00:33:49]}
h4 {[%clk 00:00:58]} {[%emt 00:01:25]} 32. Bf4 {[%clk 00:33:45]} Nd6 {[%clk
00:00:35]} {[%emt 00:01:28]} 33. Bg5 {[%clk 00:32:13]} f6 {[%clk 00:00:34]}
{[%emt 00:02:32]} 34. Bxf6 {[%clk 00:32:27]} Bxf6 {[%clk 00:00:54]} {[%emt
00:00:26]} 35. Rxf6 {[%clk 00:32:42]} Qg7+ {[%clk 00:00:50]} {[%emt 00:00:48]}
36. Kh1 {[%clk 00:32:59]} Nf7 {[%clk 00:00:31]} {[%emt 00:01:02]} 37. Ne6
{[%clk 00:33:15]} 1-0

[Event "Swedish Chess Championship 2019: Kadett-SM"]
[Site "Stiga Sports Arena, Arenatorget 1, Eskilstuna, Sweden, Sweden"]
[Date "2019.07.09"]
[Round "3.6"]
[White "Johansson-Ohman, Daniel"]
[Black "Nilsson, Oliver"]
[Result "1-0"]
[TimeControl "90 minutes for 40 moves + 30 minutes for the rest of the game + 30 seconds per move from move one"]
[WhiteFideId "1736361"]
[BlackFideId "1730177"]
[WhiteElo "1825"]
[BlackElo "1574"]

1. c4 {[%clk 01:30:58]} Nf6 {[%clk 01:30:52]} 2. g3 {[%clk 01:30:58]} g6 {[%clk
01:30:52]} 3. Bg2 {[%clk 01:31:39]} {[%emt 06:00:51]} Bg7 {[%emt 00:00:33]} 4.
Nc3 O-O {[%clk 01:31:22]} {[%emt 00:00:02]} 5. Nf3 {[%clk 01:31:57]} {[%emt
00:00:31]} d6 {[%clk 01:31:45]} {[%emt 00:00:07]} 6. O-O {[%clk 01:31:33]}
{[%emt 00:00:54]} c6 {[%clk 01:32:07]} {[%emt 00:00:08]} 7. Rb1 {[%clk
01:31:18]} {[%emt 00:00:45]} a5 {[%clk 01:29:28]} {[%emt 00:03:09]} 8. a3
{[%clk 01:30:03]} {[%emt 00:01:45]} e5 {[%clk 01:24:54]} {[%emt 00:05:04]} 9.
b4 {[%clk 01:21:32]} {[%emt 00:09:01]} Be6 {[%clk 01:14:11]} {[%emt 00:11:13]}
10. d3 {[%clk 01:14:12]} {[%emt 00:07:50]} h6 {[%clk 01:09:48]} {[%emt
00:04:53]} 11. Qc2 {[%clk 01:04:03]} {[%emt 00:10:39]} axb4 {[%clk 01:03:13]}
{[%emt 00:07:05]} 12. axb4 {[%clk 01:04:12]} {[%emt 00:00:21]} Nbd7 {[%clk
01:02:58]} {[%emt 00:00:44]} 13. Bd2 {[%clk 01:01:02]} {[%emt 00:03:40]} Qc7
{[%clk 01:01:40]} {[%emt 00:01:49]} 14. b5 {[%clk 01:00:04]} {[%emt 00:01:28]}
d5 {[%clk 00:59:32]} {[%emt 00:02:38]} 15. bxc6 {[%clk 00:53:36]} {[%emt
00:06:58]} bxc6 {[%clk 00:59:31]} {[%emt 00:00:31]} 16. cxd5 {[%clk 00:53:17]}
{[%emt 00:00:50]} cxd5 {[%clk 00:56:47]} {[%emt 00:03:13]} 17. Rfc1 {[%clk
00:37:50]} {[%emt 00:15:57]} Rfc8 {[%clk 00:48:23]} {[%emt 00:08:53]} 18. Qb2
{[%clk 00:30:55]} {[%emt 00:07:26]} e4 {[%clk 00:37:33]} {[%emt 00:11:20]} 19.
Nxe4 {[%clk 00:11:21]} {[%emt 00:20:04]} Nxe4 {[%clk 00:33:40]} {[%emt
00:04:23]} 20. Rxc7 {[%clk 00:11:45]} {[%emt 00:00:06]} Bxb2 {[%clk 00:23:51]}
{[%emt 00:10:18]} 21. Rxc8+ {[%clk 00:12:02]} {[%emt 00:00:14]} Rxc8 {[%clk
00:24:01]} {[%emt 00:00:20]} 22. Rxb2 {[%clk 00:10:25]} {[%emt 00:02:07]} Nxd2
{[%clk 00:23:46]} {[%emt 00:00:44]} 23. Nxd2 {[%clk 00:10:47]} {[%emt
00:00:07]} Rc1+ {[%clk 00:23:37]} {[%emt 00:00:39]} 24. Bf1 {[%clk 00:04:08]}
{[%emt 00:07:09]} Ne5 {[%clk 00:23:32]} {[%emt 00:00:35]} 25. Rb1 {[%clk
00:04:30]} {[%emt 00:00:09]} Rc2 {[%clk 00:23:38]} {[%emt 00:00:25]} 26. Nb3
{[%clk 00:04:39]} {[%emt 00:00:21]} Bg4 {[%clk 00:23:21]} {[%emt 00:00:47]} 27.
f3 {[%clk 00:03:54]} {[%emt 00:01:15]} Bxf3 {[%clk 00:23:33]} {[%emt 00:00:17]}
28. Nd4 {[%clk 00:03:55]} {[%emt 00:00:29]} Ra2 {[%clk 00:20:48]} {[%emt
00:03:16]} 29. Nxf3 {[%clk 00:04:10]} {[%emt 00:00:15]} Ng4 {[%clk 00:21:07]}
{[%emt 00:00:10]} 30. Bh3 {[%clk 00:02:58]} {[%emt 00:01:41]} Ne3 {[%clk
00:21:29]} {[%emt 00:00:09]} 31. Kf2 {[%clk 00:03:13]} {[%emt 00:00:15]} Nc2
{[%clk 00:21:30]} {[%emt 00:00:30]} 32. Bd7 {[%clk 00:02:38]} {[%emt 00:01:05]}
g5 {[%clk 00:21:16]} {[%emt 00:00:43]} 33. g4 {[%clk 00:02:22]} {[%emt
00:00:46]} Kg7 {[%clk 00:21:32]} {[%emt 00:00:14]} 34. Bc6 {[%clk 00:02:46]}
{[%emt 00:00:06]} h5 {[%clk 00:21:53]} {[%emt 00:00:09]} 35. h3 {[%clk
00:02:35]} {[%emt 00:00:41]} hxg4 {[%clk 00:22:08]} {[%emt 00:00:15]} 36. hxg4
{[%clk 00:03:01]} {[%emt 00:00:05]} f5 {[%clk 00:22:33]} {[%emt 00:00:05]} 37.
Bxd5 {[%clk 00:02:07]} {[%emt 00:01:24]} Ra5 {[%clk 00:22:49]} {[%emt
00:00:14]} 38. Be6 {[%clk 00:02:17]} {[%emt 00:00:20]} f4 {[%clk 00:23:06]}
{[%emt 00:00:12]} 39. Bc4 {[%clk 00:01:58]} {[%emt 00:00:50]} Ne3 {[%clk
00:23:28]} {[%emt 00:00:08]} 40. Be6 {[%clk 00:01:36]} {[%emt 00:00:53]} Kf6
{[%clk 00:22:35]} {[%emt 00:01:22]} 41. Bd7 {[%clk 00:01:20]} {[%emt 00:00:47]}
Ra6 {[%clk 00:22:15]} {[%emt 00:00:49]} 42. Nd2 {[%clk 00:00:56]} {[%emt
00:00:54]} Ke7 {[%clk 00:20:58]} {[%emt 00:01:47]} 43. Bf5 {[%clk 00:00:31]}
{[%emt 00:00:55]} Rh6 {[%clk 00:20:12]} {[%emt 00:01:16]} 44. Nf1 {[%clk
00:28:18]} {[%emt 00:02:43]} Nc2 {[%clk 00:49:23]} {[%emt 00:01:18]} 45. Rb7+
{[%clk 00:28:00]} {[%emt 00:00:49]} Ke8 {[%clk 00:49:28]} {[%emt 00:00:22]} 46.
Rg7 {[%clk 00:27:42]} {[%emt 00:00:49]} Rh1 {[%clk 00:49:36]} {[%emt 00:00:23]}
47. Rxg5 {[%clk 00:23:08]} {[%emt 00:05:04]} Nb4 {[%clk 00:49:56]} {[%emt
00:00:11]} 48. Rh5 {[%clk 00:22:59]} {[%emt 00:00:39]} Rxh5 {[%clk 00:50:02]}
{[%emt 00:00:25]} 49. gxh5 {[%clk 00:23:23]} {[%emt 00:00:05]} Nd5 {[%clk
00:50:14]} {[%emt 00:00:16]} 50. e3 {[%clk 00:23:03]} {[%emt 00:00:52]} fxe3+
{[%clk 00:50:30]} {[%emt 00:00:14]} 51. Nxe3 {[%clk 00:23:25]} {[%emt
00:00:08]} Nb4 {[%clk 00:50:50]} {[%emt 00:00:10]} 52. Ng4 {[%clk 00:23:22]}
{[%emt 00:00:33]} Kf7 {[%clk 00:51:14]} {[%emt 00:00:07]} 53. h6 {[%clk
00:23:37]} {[%emt 00:00:15]} Kg8 {[%clk 00:51:34]} {[%emt 00:00:09]} 54. Ne5
{[%clk 00:23:33]} {[%emt 00:00:34]} Nd5 {[%clk 00:51:35]} {[%emt 00:00:29]} 55.
h7+ {[%clk 00:23:29]} {[%emt 00:00:33]} Kg7 {[%emt 00:00:06]} 56. Nf7 {[%clk
00:23:44]} {[%emt 00:00:14]} 1-0

[Event "Swedish Chess Championship 2019: Kadett-SM"]
[Site "Stiga Sports Arena, Arenatorget 1, Eskilstuna, Sweden, Sweden"]
[Date "2019.07.10"]
[Round "4.1"]
[White "Dingertz, Erik"]
[Black "Joensson, Oscar"]
[Result "1/2-1/2"]
[TimeControl "90 minutes for 40 moves + 30 minutes for the rest of the game + 30 seconds per move from move one"]
[WhiteFideId "1741578"]
[BlackFideId "1729977"]
[WhiteElo "1959"]
[BlackElo "1752"]

1. c4 {[%clk 01:30:48]} {[%emt 00:00:12]} e6 {[%clk 01:30:51]} {[%emt
00:00:10]} 2. g3 {[%clk 01:31:01]} {[%emt 00:00:17]} d5 {[%clk 01:30:41]}
{[%emt 00:00:40]} 3. Bg2 {[%clk 01:31:24]} {[%emt 00:00:06]} Nf6 {[%clk
01:30:56]} {[%emt 00:00:15]} 4. b3 {[%clk 01:31:38]} {[%emt 00:00:17]} Be7
{[%clk 01:28:10]} {[%emt 00:03:16]} 5. Bb2 {[%clk 01:31:04]} {[%emt 00:01:04]}
O-O {[%clk 01:28:14]} {[%emt 00:00:26]} 6. Nf3 {[%clk 01:30:30]} {[%emt
00:01:04]} c6 {[%clk 01:27:42]} {[%emt 00:01:02]} 7. O-O {[%clk 01:30:04]}
{[%emt 00:00:54]} Nbd7 {[%clk 01:27:23]} {[%emt 00:00:50]} 8. d3 {[%clk
01:29:09]} {[%emt 00:01:26]} b5 {[%clk 01:20:07]} {[%emt 00:07:45]} 9. Nbd2
{[%clk 01:21:12]} {[%emt 00:08:26]} Qb6 {[%clk 01:08:14]} {[%emt 00:12:24]} 10.
Qc2 {[%clk 01:13:52]} {[%emt 00:07:50]} a5 {[%clk 01:03:29]} {[%emt 00:05:14]}
11. Rac1 {[%clk 01:11:52]} {[%emt 00:02:30]} Ba6 {[%clk 00:52:38]} {[%emt
00:11:21]} 12. e4 {[%clk 00:52:44]} {[%emt 00:19:37]} Rfd8 {[%clk 00:39:17]}
{[%emt 00:13:51]} 13. Rfe1 {[%clk 00:27:57]} {[%emt 00:25:18]} dxc4 {[%clk
00:21:05]} {[%emt 00:18:43]} 14. bxc4 {[%clk 00:26:13]} {[%emt 00:02:13]} bxc4
{[%clk 00:20:55]} {[%emt 00:00:40]} 15. dxc4 {[%clk 00:26:02]} {[%emt
00:00:41]} Rab8 {[%clk 00:14:44]} {[%emt 00:06:41]} 16. Bd4 {[%clk 00:22:53]}
{[%emt 00:03:38]} Bc5 {[%clk 00:14:04]} {[%emt 00:01:10]} 17. Bxc5 {[%clk
00:21:55]} {[%emt 00:01:28]} Nxc5 {[%clk 00:14:15]} {[%emt 00:00:19]} 18. e5
{[%clk 00:20:53]} {[%emt 00:01:32]} Ng4 {[%clk 00:09:38]} {[%emt 00:05:07]} 19.
Ne4 {[%clk 00:16:39]} {[%emt 00:04:44]} Nd3 {[%clk 00:07:31]} {[%emt 00:02:38]}
20. Rb1 {[%clk 00:16:03]} {[%emt 00:01:06]} Nxe1 {[%clk 00:07:43]} {[%emt
00:00:19]} 21. Rxe1 {[%clk 00:15:31]} {[%emt 00:01:02]} Qb2 {[%clk 00:07:25]}
{[%emt 00:00:48]} 22. Qxb2 {[%clk 00:14:36]} {[%emt 00:01:25]} Rxb2 {[%clk
00:07:50]} {[%emt 00:00:05]} 23. h3 {[%emt 00:00:25]} Nh6 {[%clk 00:07:45]}
{[%emt 00:00:13]} 24. Nd6 {[%clk 00:14:28]} {[%emt 00:01:05]} Nf5 {[%clk
00:07:01]} {[%emt 00:01:15]} 25. c5 {[%clk 00:12:53]} {[%emt 00:02:06]} Rc2
{[%clk 00:06:45]} {[%emt 00:00:45]} 26. g4 {[%clk 00:09:58]} {[%emt 00:03:25]}
Nxd6 {[%clk 00:06:54]} {[%emt 00:00:21]} 27. cxd6 {[%clk 00:10:21]} {[%emt
00:00:06]} c5 {[%clk 00:06:50]} {[%emt 00:00:35]} 28. Rb1 {[%clk 00:09:51]}
{[%emt 00:00:59]} f6 {[%clk 00:05:14]} {[%emt 00:02:08]} 29. Rb6 {[%clk
00:08:31]} {[%emt 00:01:50]} Bc4 {[%clk 00:05:20]} {[%emt 00:00:23]} 30. exf6
{[%clk 00:08:01]} {[%emt 00:01:01]} gxf6 {[%clk 00:05:44]} {[%emt 00:00:06]} 31.
g5 {[%clk 00:07:59]} {[%emt 00:00:31]} Rc1+ {[%clk 00:05:22]} {[%emt 00:00:52]}
32. Kh2 {[%clk 00:08:21]} {[%emt 00:00:08]} Rd1 {[%clk 00:05:28]} {[%emt
00:00:25]} 33. Rc6 {[%clk 00:08:18]} {[%emt 00:00:32]} Bd5 {[%clk 00:05:11]}
{[%emt 00:00:48]} 34. Rxc5 {[%clk 00:08:24]} {[%emt 00:00:24]} Bxf3 {[%clk
00:05:17]} {[%emt 00:00:24]} 35. Bxf3 {[%clk 00:08:37]} {[%emt 00:00:17]} R8xd6
{[%clk 00:05:02]} {[%emt 00:00:46]} 36. Bxd1 {[%clk 00:08:45]} {[%emt
00:00:22]} Rxd1 {[%clk 00:05:24]} {[%emt 00:00:07]} 37. gxf6 {[%clk 00:08:55]}
{[%emt 00:00:20]} Rd2 {[%clk 00:05:32]} {[%emt 00:00:23]} 38. Rxa5 {[%clk
00:08:54]} {[%emt 00:00:31]} 1/2-1/2

[Event "Swedish Chess Championship 2019: Kadett-SM"]
[Site "Stiga Sports Arena, Arenatorget 1, Eskilstuna, Sweden, Sweden"]
[Date "2019.07.10"]
[Round "4.2"]
[White "Zarytovskaya, Margo"]
[Black "Ivarsson, Sebastian"]
[Result "1/2-1/2"]
[TimeControl "90 minutes for 40 moves + 30 minutes for the rest of the game + 30 seconds per move from move one"]
[WhiteFideId "14149249"]
[BlackFideId "1738593"]
[WhiteElo "1895"]
[BlackElo "2079"]

1. e4 {[%clk 01:30:58]} {[%emt 00:00:02]} e5 {[%clk 01:30:53]} {[%emt
00:00:07]} 2. Nf3 {[%clk 01:31:20]} {[%emt 00:00:07]} Nc6 {[%clk 01:31:17]}
{[%emt 00:00:07]} 3. Bc4 {[%clk 01:31:44]} {[%emt 00:00:06]} Bc5 {[%clk
01:31:31]} {[%emt 00:00:16]} 4. c3 {[%clk 01:32:06]} {[%emt 00:00:08]} Nf6
{[%clk 01:31:52]} {[%emt 00:00:09]} 5. d3 {[%clk 01:32:17]} {[%emt 00:00:19]}
O-O {[%clk 01:30:21]} {[%emt 00:02:01]} 6. O-O {[%clk 01:31:59]} {[%emt
00:00:48]} d5 {[%clk 01:29:17]} {[%emt 00:01:34]} 7. exd5 {[%clk 01:31:33]}
{[%emt 00:00:56]} Nxd5 {[%clk 01:29:39]} {[%emt 00:00:08]} 8. a4 {[%clk
01:31:30]} {[%emt 00:00:33]} a5 {[%clk 01:21:56]} {[%emt 00:08:13]} 9. Nbd2
{[%clk 01:28:13]} {[%emt 00:03:46]} Nb6 {[%clk 01:18:14]} {[%emt 00:04:12]} 10.
Bb5 {[%clk 01:25:22]} {[%emt 00:03:21]} Bd6 {[%clk 01:13:56]} {[%emt 00:04:48]}
11. Ne4 {[%clk 01:20:57]} {[%emt 00:04:55]} Bg4 {[%clk 01:10:49]} {[%emt
00:03:37]} 12. h3 {[%clk 01:18:23]} {[%emt 00:03:05]} Bh5 {[%clk 01:08:53]}
{[%emt 00:02:24]} 13. Ng3 {[%clk 01:17:09]} {[%emt 00:01:45]} Bg6 {[%clk
01:08:57]} {[%emt 00:00:26]} 14. Re1 {[%clk 01:16:10]} {[%emt 00:01:29]} Re8
{[%clk 01:01:45]} {[%emt 00:07:42]} 15. h4 {[%clk 01:07:54]} {[%emt 00:08:46]}
h6 {[%clk 00:48:14]} {[%emt 00:14:00]} 16. h5 {[%clk 01:07:39]} {[%emt
00:00:44]} Bh7 {[%clk 00:48:38]} {[%emt 00:00:06]} 17. Nh2 {[%clk 01:05:44]}
{[%emt 00:02:25]} e4 {[%clk 00:40:59]} {[%emt 00:08:09]} 18. Ng4 {[%clk
00:56:55]} {[%emt 00:09:20]} Bxg3 {[%clk 00:35:02]} {[%emt 00:06:27]} 19. fxg3
{[%clk 00:57:19]} {[%emt 00:00:06]} f5 {[%clk 00:30:40]} {[%emt 00:04:51]} 20.
Nxh6+ {[%clk 00:45:28]} {[%emt 00:12:22]} gxh6 {[%clk 00:30:31]} {[%emt
00:00:39]} 21. Bxh6 {[%clk 00:45:37]} {[%emt 00:00:21]} Qf6 {[%clk 00:24:17]}
{[%emt 00:06:45]} 22. Qd2 {[%clk 00:42:47]} {[%emt 00:03:19]} Re6 {[%clk
00:18:27]} {[%emt 00:06:20]} 23. Bg5 {[%clk 00:41:40]} {[%emt 00:01:37]} Qf7
{[%clk 00:18:50]} {[%emt 00:00:06]} 24. dxe4 {[%clk 00:39:45]} {[%emt
00:02:26]} Rxe4 {[%clk 00:18:26]} {[%emt 00:00:55]} 25. Rxe4 {[%clk 00:38:55]}
{[%emt 00:01:20]} fxe4 {[%clk 00:17:52]} {[%emt 00:01:04]} 26. Rf1 {[%clk
00:35:18]} {[%emt 00:04:06]} Qd5 {[%clk 00:16:21]} {[%emt 00:02:02]} 27. Qf4
{[%clk 00:34:14]} {[%emt 00:01:32]} Qc5+ {[%clk 00:15:44]} {[%emt 00:01:08]} 28.
Kh2 {[%clk 00:33:34]} {[%emt 00:01:11]} Rf8 {[%clk 00:14:28]} {[%emt 00:01:46]}
29. Qg4 {[%clk 00:33:25]} {[%emt 00:00:38]} Ne5 {[%clk 00:12:45]} {[%emt
00:02:14]} 30. Qe6+ {[%clk 00:30:43]} {[%emt 00:03:11]} Nf7 {[%clk 00:12:25]}
{[%emt 00:00:51]} 31. Bh4 {[%clk 00:26:27]} {[%emt 00:04:46]} Qxh5 {[%clk
00:10:20]} {[%emt 00:02:34]} 32. Rf4 {[%clk 00:25:22]} {[%emt 00:01:35]} Bg6
{[%clk 00:08:51]} {[%emt 00:02:00]} 33. Be2 {[%clk 00:18:27]} {[%emt 00:07:25]}
Qh6 {[%clk 00:08:55]} {[%emt 00:00:26]} 34. Bg4 {[%clk 00:16:53]} {[%emt
00:02:03]} Kh7 {[%clk 00:06:54]} {[%emt 00:02:30]} 35. Rf6 {[%clk 00:15:59]}
{[%emt 00:01:25]} Ng5 {[%clk 00:04:39]} {[%emt 00:02:46]} 36. Qe7+ {[%clk
00:13:58]} {[%emt 00:02:28]} Rf7 {[%clk 00:05:06]} {[%emt 00:00:05]} 37. Rxf7+
{[%clk 00:14:02]} {[%emt 00:00:26]} Nxf7 {[%clk 00:05:29]} {[%emt 00:00:07]} 38.
Be6 {[%clk 00:13:19]} {[%emt 00:01:13]} Qg7 {[%clk 00:03:43]} {[%emt 00:02:16]}
39. Bf6 {[%clk 00:12:57]} {[%emt 00:00:52]} Qh6+ {[%clk 00:04:06]} {[%emt
00:00:07]} 40. Bh4 {[%clk 00:12:54]} {[%emt 00:00:33]} Qg7 {[%clk 00:04:08]}
{[%emt 00:00:29]} 41. Bf6 {[%clk 00:12:29]} {[%emt 00:00:54]} Qh6+ {[%clk
00:04:32]} {[%emt 00:00:06]} 42. Bh4 {[%clk 00:12:55]} {[%emt 00:00:04]}
1/2-1/2